bitfinex-derivatives/quotes_BTCF0:USTF0_20250329
["timestamp","ask_amount","ask_price","bid_price","bid_amount"]
[1743250369422,0.10382,82393.0,82392.0,0.4837492]
[1743250369932,0.10382,82393.0,82392.0,0.70423957]
[1743250371735,0.00152,82393.0,82392.0,0.70423957]
[1743250371922,0.1052,82394.0,82393.0,0.1214277]
[1743250372122,0.10584,82394.0,82393.0,0.1229477]
[1743250372322,0.10584,82394.0,82393.0,0.3291477]
[1743250374131,0.21334,82394.0,82393.0,0.1229477]
[1743250374336,0.21334,82394.0,82393.0,0.4837477]
[1743250374530,0.21334,82394.0,82393.0,0.5855477]
[1743250376718,0.21334,82394.0,82393.0,0.4837477]
[1743250377422,0.21334,82394.0,82393.0,0.5898477]
[1743250379827,0.21334,82394.0,82393.0,0.6903477]
[1743250380036,0.10584,82394.0,82393.0,0.6903477]
[1743250381026,0.10584,82394.0,82393.0,0.5898477]
[1743250381027,0.21014,82394.0,82393.0,0.5898477]
[1743250381326,0.10584,82394.0,82393.0,0.5898477]
[1743250381533,0.10584,82394.0,82393.0,0.6903477]
[1743250382133,1e-07,82394.0,82393.0,0.6903477]
[1743250382322,0.10869487,82397.0,82396.0,0.1214233]
[1743250382522,0.10869487,82397.0,82396.0,0.4840633]
[1743250382825,0.1,82400.0,82399.0,0.1214189]
[1743250383033,0.1,82400.0,82399.0,0.1231389]
[1743250383524,0.1,82400.0,82399.0,0.3246389]
[1743250385834,0.14520895,82404.0,82403.0,0.121413]
[1743250386133,0.18123493,82411.0,82410.0,0.1214027]
[1743250386335,0.1094,82411.0,82410.0,0.4840027]
[1743250386927,0.1094,82411.0,82410.0,0.6983027]
[1743250387528,0.18123493,82422.0,82419.0,0.1213894]
[1743250387729,0.18123493,82422.0,82419.0,0.6217894]
[1743250387932,0.18123493,82422.0,82419.0,0.6235094]
[1743250388433,0.18123493,82422.0,82419.0,0.8352094]
[1743250388635,0.1008,82421.0,82419.0,0.8352094]
[1743250389133,0.1008,82421.0,82419.0,0.7303094]
[1743250389434,0.1076,82420.0,82419.0,0.7313094]
[1743250389635,0.1076,82420.0,82419.0,0.74126955]
[1743250389839,0.1076,82420.0,82419.0,0.74226955]
[1743250390028,0.1076,82420.0,82419.0,0.60266955]
[1743250394837,0.1076,82420.0,82419.0,0.4859094]
[1743250395237,0.1076,82420.0,82419.0,0.49615199]
[1743250395942,0.1076,82420.0,82419.0,0.49515199]
[1743250396141,0.1076,82420.0,82419.0,0.49615199]
[1743250397232,0.1076,82420.0,82419.0,0.85695199]
[1743250397628,0.1076,82420.0,82419.0,0.8467094]
[1743250398739,0.1076,82420.0,82419.0,0.4859094]
[1743250399135,0.11746601,82420.0,82419.0,0.4859094]
[1743250399943,0.07946381,82450.0,82435.0,0.1213659]
[1743250400136,0.1217644,82436.0,82435.0,0.1230859]
[1743250400335,0.13090363,82436.0,82435.0,0.00172]
[1743250400533,0.13090363,82436.0,82435.0,0.1213659]
[1743250400835,0.14105715,82436.0,82435.0,0.1230859]
[1743250401147,0.14105715,82436.0,82435.0,0.1213659]
[1743250401337,0.31739275,82436.0,82435.0,0.1230859]
[1743250402041,0.21175352,82436.0,82435.0,0.1230859]
[1743250402538,0.30825352,82436.0,82435.0,0.1230859]
[1743250403941,0.2981,82436.0,82435.0,0.1230859]
[1743250413851,0.2981,82436.0,82435.0,0.4838859]
[1743250414848,0.0606849,82433.0,82421.0,0.3608]
[1743250415153,0.1213821,82427.0,82426.0,0.1820613]
[1743250415347,0.1213821,82427.0,82426.0,0.1833013]
[1743250415554,0.12258211,82427.0,82426.0,0.1833013]
[1743250416349,0.12258211,82427.0,82426.0,0.3046759]
[1743250416845,0.00120001,82427.0,82426.0,0.3046759]
[1743250417053,0.12257771,82427.0,82426.0,0.3046759]
[1743250417245,0.32007771,82427.0,82426.0,0.3046759]
[1743250417450,0.19870001,82427.0,82426.0,0.3046759]
[1743250418855,0.32007771,82427.0,82426.0,0.3046759]
[1743250421449,0.19870001,82427.0,82426.0,0.3046759]
[1743250422247,0.32007771,82427.0,82426.0,0.3046759]
[1743250422754,0.32007771,82427.0,82426.0,0.00124]
[1743250422956,0.32007771,82427.0,82426.0,0.1226191]
[1743250424065,0.68087771,82427.0,82426.0,0.00124]
[1743250424263,0.1213909,82418.0,82417.0,0.33816103]
[1743250424565,0.12259091,82418.0,82417.0,0.33936103]
[1743250425057,0.12259091,82418.0,82417.0,0.33936193]
[1743250425262,0.32889091,82418.0,82417.0,0.33936193]
[1743250425464,0.32889091,82418.0,82417.0,0.34136193]
[1743250425958,0.32889091,82418.0,82417.0,0.22096953]
[1743250427558,0.32889091,82418.0,82417.0,0.34236193]
[1743250427761,0.0606978,82415.0,82397.0,0.43403218]
[1743250428057,0.0606978,82415.0,82395.0,0.00048546]
[1743250428058,0.1214233,82396.0,82395.0,0.00048546]
[1743250428263,0.1222633,82396.0,82395.0,0.00132546]
[1743250428958,0.3176633,82396.0,82395.0,0.00132546]
[1743250429258,0.3176633,82396.0,82395.0,0.12275026]
[1743250429661,0.3176633,82396.0,82395.0,0.00132546]
[1743250430160,0.3279388,82396.0,82395.0,0.00132546]
[1743250430760,0.1214263,82394.0,82393.0,0.43403218]
[1743250430964,0.13110427,82394.0,82393.0,0.43471218]
[1743250432067,0.13310427,82394.0,82393.0,0.43471218]
[1743250432266,0.13310427,82394.0,82393.0,0.00068]
[1743250432567,0.1214336,82389.0,82388.0,0.1001]
[1743250432767,0.1221936,82389.0,82388.0,0.10082]
[1743250433866,0.1231936,82389.0,82388.0,0.10082]
[1743250434366,0.1231936,82389.0,82388.0,0.3209351]
[1743250434665,0.1231936,82389.0,82388.0,0.3216151]
[1743250435458,0.1221936,82389.0,82388.0,0.3216151]
[1743250436466,0.1221936,82389.0,82388.0,0.20018]
[1743250436658,0.1221936,82389.0,82388.0,0.10078]
[1743250436859,0.1221936,82389.0,82388.0,0.2222151]
[1743250438066,0.1221936,82389.0,82388.0,0.10078]
[1743250438462,0.1221936,82389.0,82388.0,0.2222151]
[1743250440569,0.1221936,82389.0,82388.0,0.3216151]
[1743250441960,0.00076,82389.0,82388.0,0.3216151]
[1743250442270,0.1221936,82389.0,82388.0,0.3216151]
[1743250444663,0.1221936,82389.0,82388.0,0.10078]
[1743250445066,0.1221936,82389.0,82388.0,0.2222151]
[1743250445268,0.3271936,82389.0,82388.0,0.2222151]
[1743250445973,0.3271936,82389.0,82388.0,0.10078]
[1743250448566,0.3271936,82389.0,82388.0,0.2222151]
[1743250448763,0.3271936,82389.0,82388.0,0.3257151]
[1743250449168,0.3271936,82389.0,82388.0,0.10078]
[1743250455281,0.3271936,82389.0,82388.0,0.3262151]
[1743250456080,0.3271936,82389.0,82388.0,0.4228151]
[1743250458279,0.2284936,82389.0,82388.0,0.4228151]
[1743250458485,0.28753293,82389.0,82388.0,0.4228151]
[1743250459475,0.19895933,82389.0,82388.0,0.4228151]
[1743250460384,0.32039293,82389.0,82388.0,0.4228151]
[1743250461176,0.05979933,82389.0,82388.0,0.7836151]
[1743250463787,0.05979933,82389.0,82388.0,0.79406486]
[1743250464888,0.05979933,82389.0,82388.0,0.7836151]
[1743250465984,0.05979933,82389.0,82388.0,0.7939493]
[1743250466286,0.00076,82389.0,82388.0,0.7939493]
[1743250466491,0.26651673,82390.0,82389.0,0.1214336]
[1743250466675,0.26731673,82390.0,82389.0,0.1220736]
[1743250467078,0.26731673,82390.0,82389.0,0.3309736]
[1743250468184,0.26731673,82390.0,82389.0,0.6917736]
[1743250468886,0.14588453,82390.0,82389.0,0.6917736]
[1743250472295,0.26731673,82390.0,82389.0,0.6917736]
[1743250473490,0.26731673,82390.0,82389.0,0.3309736]
[1743250474593,0.1222322,82390.0,82389.0,0.3309736]
[1743250476289,0.1222322,82390.0,82389.0,0.20954]
[1743250476496,0.1222322,82390.0,82389.0,0.3309736]
[1743250478803,0.1222322,82390.0,82389.0,0.2275736]
[1743250479700,0.2185322,82390.0,82389.0,0.10614]
[1743250480002,0.1214351,82388.0,82387.0,0.00018206]
[1743250480194,0.1223151,82388.0,82387.0,0.00018206]
[1743250480395,0.1223151,82388.0,82387.0,0.00086206]
[1743250480595,0.3180151,82388.0,82387.0,0.00086206]
[1743250481004,0.4569751,82388.0,82387.0,0.00018206]
[1743250481306,0.1214469,82380.0,82379.0,0.48273396]
[1743250481508,0.1223269,82380.0,82379.0,0.48345396]
[1743250481691,0.1223269,82380.0,82379.0,0.00120556]
[1743250481896,0.1214616,82371.0,82370.0,0.0607307]
[1743250482195,0.1223416,82371.0,82370.0,0.0614107]
[1743250482400,0.1223416,82371.0,82370.0,0.1641107]
[1743250482604,0.1213416,82371.0,82370.0,0.1641107]
[1743250482794,0.3198416,82371.0,82370.0,0.1641107]
[1743250483204,0.3198416,82371.0,82370.0,0.1671107]
[1743250484515,0.3198416,82371.0,82370.0,0.10638]
[1743250484805,0.3198416,82371.0,82370.0,0.2308416]
[1743250485201,0.33042415,82371.0,82370.0,0.2308416]
[1743250485398,0.33042415,82371.0,82370.0,0.1281416]
[1743250486905,0.33042415,82371.0,82370.0,0.3390416]
[1743250487606,0.10148,82371.0,82370.0,0.3390416]
[1743250488606,0.00088,82371.0,82370.0,0.3390416]
[1743250490510,0.1223402,82371.0,82370.0,0.3390416]
[1743250490912,0.2181402,82371.0,82370.0,0.3390416]
[1743250492515,0.2181402,82371.0,82370.0,0.6998416]
[1743250493509,0.2181402,82371.0,82370.0,0.3390416]
[1743250493820,0.2181402,82371.0,82370.0,0.2336416]
[1743250494017,0.2181402,82371.0,82370.0,0.00668]
[1743250494212,0.2181402,82371.0,82370.0,0.006]
[1743250494719,0.2181402,82371.0,82370.0,0.00664]
[1743250494920,0.2181402,82371.0,82370.0,0.006]
[1743250496525,0.22504337,82371.0,82370.0,0.1274616]
[1743250496821,0.22504337,82371.0,82370.0,0.006]
[1743250497516,0.2181402,82371.0,82370.0,0.006]
[1743250498520,0.2181402,82371.0,82370.0,0.1274616]
[1743250498711,0.3178402,82371.0,82370.0,0.1274616]
[1743250499117,0.3178402,82371.0,82370.0,0.1281016]
[1743250499420,0.3178402,82371.0,82370.0,0.2269016]
[1743250500914,0.3178402,82371.0,82370.0,0.10544]
[1743250501109,0.3178402,82371.0,82370.0,0.2269016]
[1743250502023,0.32473634,82371.0,82370.0,0.10544]
[1743250502319,0.32473634,82371.0,82370.0,0.1048]
[1743250502524,0.3178402,82371.0,82370.0,0.2262616]
[1743250502724,0.2220402,82371.0,82370.0,0.2269016]
[1743250503025,0.1223402,82371.0,82370.0,0.2269016]
[1743250503228,0.00088,82371.0,82370.0,0.2269016]
[1743250503824,0.14473078,82373.0,82372.0,0.1214587]
[1743250504025,0.14557078,82373.0,82372.0,0.1220987]
[1743250505023,0.14557078,82373.0,82372.0,0.4878987]
[1743250505225,0.14473078,82373.0,82372.0,0.4878987]
[1743250506014,0.14565078,82373.0,82372.0,0.4878987]
[1743250506215,0.14473078,82373.0,82372.0,0.4878987]
[1743250506411,0.10863556,82374.0,82373.0,0.1214572]
[1743250506612,0.10955556,82374.0,82373.0,0.3244972]
[1743250506822,0.10863556,82374.0,82373.0,0.3244972]
[1743250507039,0.10951556,82374.0,82373.0,0.3244972]
[1743250507331,0.10863556,82374.0,82373.0,0.3244972]
[1743250507520,0.10863556,82374.0,82373.0,0.3274972]
[1743250508423,0.18135567,82383.0,82382.0,0.121444]
[1743250508630,0.18223567,82383.0,82382.0,0.482884]
[1743250509427,0.00088,82383.0,82382.0,0.675484]
[1743250510325,0.14490992,82386.0,82385.0,0.1214395]
[1743250510521,0.14574992,82386.0,82385.0,0.13305232]
[1743250511026,0.14490992,82386.0,82385.0,0.13305232]
[1743250511215,0.14582992,82386.0,82385.0,0.1220795]
[1743250511421,0.14490992,82386.0,82385.0,0.1220795]
[1743250512127,0.14582992,82386.0,82385.0,0.1220795]
[1743250513022,0.14582992,82386.0,82385.0,0.4828795]
[1743250513220,0.00092,82386.0,82385.0,0.4828795]
[1743250514226,0.00018152,82391.0,82390.0,0.1214322]
[1743250514545,0.00102152,82391.0,82390.0,0.1220722]
[1743250514835,0.12245222,82391.0,82390.0,0.1220722]
[1743250515031,0.21845222,82391.0,82390.0,0.1220722]
[1743250515236,0.21845222,82391.0,82390.0,0.3196722]
[1743250515823,0.21845222,82391.0,82390.0,0.2167722]
[1743250516029,0.21845222,82391.0,82390.0,0.09534]
[1743250516224,0.35713222,82391.0,82390.0,0.00064]
[1743250516627,0.35713222,82391.0,82390.0,0.1220722]
[1743250516831,0.35713222,82391.0,82390.0,0.00064]
[1743250517235,0.35713222,82391.0,82390.0,0.1220722]
[1743250521629,0.35713222,82391.0,82390.0,0.2248722]
[1743250523230,0.35713222,82391.0,82390.0,0.10344]
[1743250523431,0.71793222,82391.0,82390.0,0.10344]
[1743250523740,0.71793222,82391.0,82379.0,0.0607238]
[1743250523741,0.1214425,82383.0,82359.0,0.06085255]
[1743250523943,0.1225225,82383.0,82382.0,0.12162496]
[1743250524135,0.1225225,82383.0,82382.0,0.12226496]
[1743250524538,0.3264225,82383.0,82382.0,0.12226496]
[1743250525140,0.3264225,82383.0,82382.0,0.12426496]
[1743250526635,0.20498,82383.0,82382.0,0.12426496]
[1743250526838,0.20498,82383.0,82382.0,0.22696496]
[1743250527037,0.20498,82383.0,82382.0,0.22596496]
[1743250527238,0.20498,82383.0,82382.0,0.58576496]
[1743250527444,0.10228,82383.0,82382.0,0.58576496]
[1743250528234,0.2237225,82383.0,82382.0,0.58576496]
[1743250529147,0.2237225,82383.0,82382.0,0.48306496]
[1743250529846,0.2237225,82383.0,82382.0,0.68866496]
[1743250530047,0.2237225,82383.0,82382.0,0.32786496]
[1743250530445,0.10228,82383.0,82382.0,0.32786496]
[1743250530643,0.2237225,82383.0,82382.0,0.32786496]
[1743250535250,0.10228,82383.0,82382.0,0.32786496]
[1743250535446,0.30296789,82391.0,82390.0,0.1214322]
[1743250535646,0.30404789,82391.0,82390.0,0.4829122]
[1743250536338,0.30404789,82391.0,82390.0,0.6886122]
[1743250537351,0.12269222,82391.0,82390.0,0.6886122]
[1743250537548,0.00126152,82391.0,82390.0,0.6886122]
[1743250540556,0.00018152,82391.0,82390.0,0.6886122]
[1743250542254,0.00122153,82391.0,82390.0,0.6886122]
[1743250543845,0.00122153,82391.0,82390.0,1.0494122]
[1743250544049,0.00018152,82391.0,82390.0,1.0494122]
[1743250544753,0.00130153,82391.0,82390.0,1.0494122]
[1743250545652,0.00018152,82391.0,82390.0,1.0494122]
[1743250546654,0.00018152,82391.0,82390.0,0.3278122]
[1743250546960,0.00122153,82391.0,82390.0,0.6886122]
[1743250548147,0.00018152,82391.0,82390.0,0.6886122]
[1743250549951,0.21697245,82411.0,82403.0,0.121413]
[1743250550150,0.18267108,82406.0,82405.0,0.1214101]
[1743250550350,0.18267108,82406.0,82405.0,0.1220501]
[1743250550670,0.18267108,82406.0,82405.0,0.3244501]
[1743250554461,0.00108,82406.0,82405.0,0.3244501]
[1743250554665,0.1045,82409.0,82408.0,0.1214056]
[1743250554855,0.1045,82409.0,82408.0,0.1220456]
[1743250555049,0.10554001,82409.0,82408.0,0.1220456]
[1743250557056,0.1045,82409.0,82408.0,0.1220456]
[1743250559064,0.10558,82409.0,82408.0,0.1220456]
[1743250559266,0.1045,82409.0,82408.0,0.1220456]
[1743250562170,0.1045,82409.0,82408.0,0.4828456]
[1743250563053,0.10554001,82409.0,82408.0,0.4828456]
[1743250563257,0.1045,82409.0,82408.0,0.4828456]
[1743250563562,0.10562001,82409.0,82408.0,0.4828456]
[1743250564461,0.20042001,82409.0,82408.0,0.4828456]
[1743250565169,0.1993,82409.0,82408.0,0.4828456]
[1743250565468,0.20034001,82409.0,82408.0,0.4828456]
[1743250567665,0.121413,82403.0,82400.0,0.00018206]
[1743250567871,0.122693,82403.0,82402.0,0.36144]
[1743250568658,0.321393,82403.0,82402.0,0.36144]
[1743250569472,0.1214263,82394.0,82393.0,1e-08]
[1743250569662,0.6218263,82394.0,82393.0,0.00064001]
[1743250569965,0.1214366,82387.0,82386.0,0.3640501]
[1743250570273,0.4838766,82387.0,82386.0,0.3640501]
[1743250571869,0.49498132,82387.0,82386.0,0.4854882]
[1743250572067,0.63314132,82387.0,82386.0,0.3640501]
[1743250572471,0.83514132,82387.0,82386.0,0.4854882]
[1743250572981,0.83514132,82387.0,82386.0,0.3640501]
[1743250573164,0.83514132,82387.0,82386.0,0.4854882]
[1743250573370,0.83514132,82387.0,82386.0,0.1214381]
[1743250573772,0.93184132,82387.0,82386.0,0.1214381]
[1743250574672,0.0607226,82382.0,82379.0,0.15660916]
[1743250574973,0.4822469,82380.0,82379.0,0.00048556]
[1743250575279,0.4838869,82380.0,82379.0,0.12193396]
[1743250575571,0.6887869,82380.0,82379.0,0.12193396]
[1743250575764,0.6887869,82380.0,82379.0,0.12293396]
[1743250577073,0.6887869,82380.0,82379.0,0.12393396]
[1743250578065,0.6887869,82380.0,82379.0,0.32443396]
[1743250578273,0.56734,82380.0,82379.0,0.32443396]
[1743250578464,0.56734,82380.0,82379.0,0.42283396]
[1743250578670,0.46274,82380.0,82379.0,0.42283396]
[1743250580185,0.5841869,82380.0,82379.0,0.42283396]
[1743250580787,0.5841869,82380.0,82379.0,0.10178556]
[1743250580970,0.5841869,82380.0,82379.0,0.22323396]
[1743250581572,0.46274,82380.0,82379.0,0.22323396]
[1743250581771,0.46274,82380.0,82379.0,0.31963396]
[1743250582371,0.5841869,82380.0,82379.0,0.31963396]
[1743250585770,0.36244,82380.0,82379.0,0.31963396]
[1743250586171,0.36244,82380.0,82379.0,0.33516692]
[1743250586873,0.00164,82380.0,82379.0,0.33516692]
[1743250587075,0.1326465,82391.0,82390.0,0.1214322]
[1743250587281,0.4950865,82391.0,82390.0,0.13696516]
[1743250587473,0.4950865,82391.0,82390.0,0.13689741]
[1743250587869,0.4950865,82391.0,82390.0,0.33189741]
[1743250588772,0.36244,82391.0,82390.0,0.33189741]
[1743250589566,0.00164,82391.0,82390.0,0.33189741]
[1743250591577,0.00018206,82395.0,82394.0,0.1214263]
[1743250591781,0.00182206,82395.0,82394.0,0.13684395]
[1743250592268,0.00182206,82395.0,82394.0,0.24224395]
[1743250596988,0.12324686,82395.0,82394.0,0.24224395]
[1743250598973,0.00182206,82395.0,82394.0,0.24224395]
[1743250599180,0.00182206,82395.0,82394.0,0.2268263]
[1743250600480,0.12324686,82395.0,82394.0,0.2268263]
[1743250609493,0.0607142,82394.0,82390.0,0.0607161]
[1743250609696,0.1214307,82392.0,82391.0,0.1821423]
[1743250609887,0.1230707,82392.0,82391.0,0.0607146]
[1743250610089,0.2214707,82392.0,82391.0,0.0607146]
[1743250610296,0.3272707,82392.0,82391.0,0.1556146]
[1743250610792,0.3272707,82392.0,82391.0,0.0949]
[1743250610996,0.1214322,82390.0,82389.0,0.1019]
[1743250611290,0.1214322,82390.0,82385.0,0.1005]
[1743250611291,0.1214381,82386.0,82385.0,0.1005]
[1743250611595,0.1214454,82381.0,82380.0,0.19]
[1743250611788,0.1230854,82381.0,82380.0,0.3114469]
[1743250611988,0.1232054,82381.0,82380.0,0.3114469]
[1743250612698,0.3154054,82381.0,82380.0,0.3114469]
[1743250613389,0.3154054,82381.0,82380.0,0.3134469]
[1743250613897,0.46040954,82381.0,82380.0,0.3134469]
[1743250614098,0.47172416,82381.0,82380.0,0.3134469]
[1743250620294,0.35027876,82381.0,82366.0,0.0607335]
[1743250620485,0.1214587,82372.0,82371.0,0.0974]
[1743250620690,0.4838987,82372.0,82371.0,0.0974]
[1743250620894,0.4838987,82372.0,82371.0,0.2188602]
[1743250621605,0.6791987,82372.0,82371.0,0.2188602]
[1743250622088,0.6791987,82372.0,82371.0,0.0974]
[1743250622287,0.68812691,82372.0,82371.0,0.1014]
[1743250623101,0.68812691,82372.0,82371.0,0.004]
[1743250623292,0.68812691,82372.0,82371.0,0.007]
[1743250623892,0.56666821,82372.0,82364.0,0.0936]
[1743250624106,0.1214705,82364.0,82360.0,0.1961]
[1743250624302,0.1231105,82364.0,82360.0,0.1961]
[1743250624501,0.6215905,82364.0,82363.0,0.00018206]
[1743250624805,0.1214882,82352.0,82339.0,0.0607536]
[1743250625005,0.63297768,82352.0,82348.0,0.1961]
[1743250625395,0.62897768,82352.0,82348.0,0.1961]
[1743250625593,0.82527768,82352.0,82350.0,0.1214904]
[1743250625792,0.82027768,82352.0,82348.0,0.1961]
[1743250625997,0.82027768,82352.0,82351.0,0.3650501]
[1743250626695,0.82027768,82352.0,82351.0,0.21319225]
[1743250626895,0.97027768,82352.0,82351.0,0.21319225]
[1743250627108,0.97027768,82352.0,82351.0,0.06535951]
[1743250627300,0.97027768,82352.0,82351.0,0.00461497]
[1743250627500,1.27028948,82352.0,82335.0,0.1955]
[1743250627697,0.1215,82344.0,82343.0,6e-08]
[1743250627894,0.1215,82344.0,82324.0,0.201]
[1743250627895,0.1215177,82332.0,82324.0,0.201]
[1743250628102,0.6216377,82332.0,82316.0,0.0962]
[1743250628303,0.7716377,82332.0,82331.0,4e-08]
[1743250628498,0.9711377,82332.0,82331.0,4e-08]
[1743250629204,0.6834577,82332.0,82331.0,0.00100004]
[1743250629398,0.8211377,82332.0,82331.0,0.00100004]
[1743250629597,0.8221377,82332.0,82331.0,0.00100004]
[1743250630913,0.8221377,82332.0,82331.0,4e-08]
[1743250631107,0.8241377,82332.0,82331.0,4e-08]
[1743250631913,0.9741377,82332.0,82331.0,4e-08]
[1743250632518,0.1215295,82324.0,82323.0,0.00018218]
[1743250632816,0.4839695,82324.0,82323.0,0.00014218]
[1743250633005,0.6339695,82324.0,82323.0,0.00014218]
[1743250633205,0.8343695,82324.0,82323.0,0.00014218]
[1743250633919,0.84350557,82324.0,82323.0,0.00014218]
[1743250634119,0.84350557,82324.0,82323.0,0.00114218]
[1743250634624,0.84350557,82324.0,82323.0,0.00214218]
[1743250634824,0.84550557,82324.0,82323.0,0.00114218]
[1743250635123,0.84550557,82324.0,82323.0,0.00014218]
[1743250635430,0.69650557,82324.0,82323.0,0.00014218]
[1743250635823,0.1215413,82316.0,82306.0,0.1956]
[1743250636031,0.6216613,82316.0,82306.0,0.1956]
[1743250636729,0.8266613,82316.0,82306.0,0.1956]
[1743250636926,0.8266613,82316.0,82307.0,0.00018218]
[1743250637230,1.3891613,82316.0,82307.0,0.00018218]
[1743250638121,1.3941613,82316.0,82307.0,0.00018218]
[1743250638324,1.3981613,82316.0,82307.0,0.00018218]
[1743250638521,1.3981613,82316.0,82307.0,0.09598218]
[1743250638920,1.3981613,82316.0,82315.0,4e-08]
[1743250640028,0.1215531,82308.0,82307.0,0.00018218]
[1743250640229,0.8965331,82308.0,82307.0,0.00018218]
[1743250640820,1.10849716,82308.0,82307.0,0.00018218]
[1743250641221,1.11049716,82308.0,82307.0,0.00018218]
[1743250641427,1.01209716,82308.0,82307.0,0.00018218]
[1743250641731,0.121562,82302.0,82301.0,0.2595812]
[1743250641937,0.48408201,82302.0,82301.0,0.2595812]
[1743250642336,0.62172201,82302.0,82301.0,0.2595812]
[1743250642633,0.36252001,82302.0,82301.0,0.2595812]
[1743250642822,0.4165,82308.0,82307.0,0.1215546]
[1743250643025,0.4165,82308.0,82307.0,0.1222346]
[1743250643026,0.00520001,82308.0,82307.0,0.1222346]
[1743250643225,0.3608,82317.0,82315.0,0.1215428]
[1743250643429,0.12248378,82316.0,82315.0,0.12200708]
[1743250644038,0.1338946,82316.0,82315.0,0.12200708]
[1743250644441,0.1378946,82316.0,82315.0,0.12200708]
[1743250645937,0.1418946,82316.0,82315.0,0.12200708]
[1743250646641,0.1418946,82316.0,82315.0,0.22300708]
[1743250646956,0.1418946,82316.0,82315.0,0.32050708]
[1743250648334,0.1398946,82316.0,82315.0,0.32050708]
[1743250648840,0.1378946,82316.0,82315.0,0.32050708]
[1743250649240,0.1378946,82316.0,82315.0,0.19914]
[1743250650842,0.1378946,82316.0,82315.0,0.3206828]
[1743250651044,0.1398946,82316.0,82315.0,0.3206828]
[1743250651640,0.1408946,82316.0,82315.0,0.3206828]
[1743250651844,0.1398946,82316.0,82315.0,0.3206828]
[1743250652549,0.2774546,82316.0,82315.0,0.3206828]
[1743250653249,0.2744546,82316.0,82315.0,0.3206828]
[1743250653634,0.1398946,82316.0,82315.0,0.3206828]
[1743250653939,0.2774546,82316.0,82315.0,0.3206828]
[1743250654339,0.2764546,82316.0,82315.0,0.19914]
[1743250654751,0.2734546,82316.0,82315.0,0.19914]
[1743250654944,0.2754546,82316.0,82315.0,0.19914]
[1743250655149,0.2754546,82316.0,82315.0,0.3206828]
[1743250656044,0.2734546,82316.0,82315.0,0.3206828]
[1743250656243,0.2764546,82316.0,82315.0,0.3206828]
[1743250657141,0.2774546,82316.0,82315.0,0.3206828]
[1743250657548,0.2774546,82316.0,82315.0,0.19914]
[1743250657935,0.2744546,82316.0,82315.0,0.00064]
[1743250658148,0.1215531,82308.0,82307.0,0.1007]
[1743250658347,0.121562,82302.0,82301.0,0.0956]
[1743250658540,0.259082,82302.0,82301.0,0.19702]
[1743250658741,0.620642,82302.0,82301.0,0.19702]
[1743250660546,0.00076,82302.0,82301.0,0.6793835]
[1743250660747,0.1215545,82311.0,82310.0,0.0607738]
[1743250660946,0.2590345,82311.0,82310.0,0.0607738]
[1743250661256,0.2597945,82311.0,82310.0,0.0607738]
[1743250662047,0.2617945,82311.0,82310.0,0.0607738]
[1743250662245,0.2637945,82311.0,82310.0,0.0615338]
[1743250663150,0.00476,82311.0,82310.0,0.0615338]
[1743250664251,0.1263087,82311.0,82310.0,0.0615338]
[1743250664651,0.1243087,82311.0,82310.0,0.0615338]
[1743250664848,0.00476,82311.0,82310.0,0.0615338]
[1743250665242,0.004,82311.0,82310.0,0.0615338]
[1743250665752,0.01138649,82316.0,82315.0,0.1215428]
[1743250665952,0.13368779,82316.0,82315.0,0.4829828]
[1743250666150,0.13292779,82316.0,82315.0,0.4829828]
[1743250666340,0.13368779,82316.0,82315.0,0.4829828]
[1743250666544,0.13368779,82316.0,82315.0,0.5759828]
[1743250666751,0.13372779,82316.0,82315.0,0.45444]
[1743250667049,0.13372779,82316.0,82315.0,0.00064]
[1743250667257,0.1215487,82311.0,82310.0,0.094]
[1743250667452,0.1223087,82311.0,82310.0,0.09464]
[1743250667649,0.1223087,82311.0,82310.0,0.2171902]
[1743250668044,0.2195087,82311.0,82310.0,0.09464]
[1743250668255,0.2195087,82311.0,82310.0,0.00064]
[1743250668445,0.2215087,82311.0,82310.0,0.00064]
[1743250668848,0.2235087,82311.0,82310.0,0.00064]
[1743250669358,0.2235087,82311.0,82310.0,0.1221902]
[1743250670846,0.2215087,82311.0,82310.0,0.1221902]
[1743250671047,0.2235087,82311.0,82310.0,0.1221902]
[1743250671850,0.2235087,82311.0,82310.0,0.00064]
[1743250672056,0.1215502,82310.0,82309.0,0.0953]
[1743250672254,0.2103102,82310.0,82309.0,0.0953]
[1743250672458,0.1823378,82306.0,82305.0,0.1215568]
[1743250672650,0.3204978,82306.0,82305.0,0.1221968]
[1743250672853,0.4931978,82306.0,82305.0,0.1221968]
[1743250673959,0.4931978,82306.0,82305.0,0.2037968]
[1743250674945,0.4941978,82306.0,82305.0,0.2037968]
[1743250675354,0.4951978,82306.0,82305.0,0.2037968]
[1743250675553,0.3736387,82306.0,82305.0,0.2037968]
[1743250675871,0.2889387,82306.0,82305.0,0.2037968]
[1743250676354,0.34803348,82306.0,82305.0,0.2037968]
[1743250676953,0.21063348,82306.0,82305.0,0.2037968]
[1743250677259,0.34799348,82306.0,82305.0,0.2037968]
[1743250679249,0.06185478,82306.0,82305.0,0.2037968]
[1743250680554,0.00276,82306.0,82305.0,0.2037968]
[1743250682459,0.00276,82306.0,82305.0,0.3537968]
[1743250682661,0.18200344,82307.0,82306.0,0.1215561]
[1743250682958,0.21820351,82312.0,82311.0,0.1215487]
[1743250683163,0.21896351,82312.0,82311.0,0.4829887]
[1743250683371,0.21896351,82312.0,82311.0,0.6329887]
[1743250683559,0.21820351,82312.0,82311.0,0.4829887]
[1743250683751,0.21820351,82312.0,82311.0,0.7289887]
[1743250683954,0.21896351,82312.0,82311.0,0.7289887]
[1743250684255,0.21820351,82312.0,82311.0,0.7289887]
[1743250684450,0.00018218,82316.0,82315.0,0.1215428]
[1743250684655,0.00018218,82316.0,82315.0,0.1221828]
[1743250684865,0.00018218,82316.0,82315.0,0.2721828]
[1743250685054,0.00018218,82316.0,82315.0,0.6329828]
[1743250686461,0.00018218,82316.0,82315.0,0.4829828]
[1743250688163,0.00018218,82316.0,82315.0,0.1221828]
[1743250688364,0.00102218,82316.0,82315.0,1.0088828]
[1743250688569,0.00018218,82316.0,82315.0,1.0088828]
[1743250688953,0.12172348,82316.0,82315.0,0.6480828]
[1743250689159,0.12248348,82316.0,82315.0,0.6480828]
[1743250690062,0.12248348,82316.0,82315.0,0.2872828]
[1743250690362,0.00194218,82316.0,82315.0,0.2872828]
[1743250690562,0.00194218,82316.0,82315.0,0.6480828]
[1743250690768,0.08914218,82316.0,82315.0,0.6480828]
[1743250691068,0.08814218,82316.0,82315.0,0.6480828]
[1743250691663,0.09014218,82316.0,82315.0,0.6480828]
[1743250692255,0.08814218,82316.0,82315.0,0.6480828]
[1743250692454,0.08814218,82316.0,82315.0,0.6490828]
[1743250699372,0.00094218,82316.0,82315.0,0.6480828]
[1743250699575,0.10899965,82320.0,82319.0,0.1215369]
[1743250699874,0.10971965,82320.0,82319.0,0.1223369]